Workbook

Sheet ReadMe
A1: Oct.29.2012_Model
A2: Abbreviations | B2: USGS, U.S. Geological Survey; ID, identifier; TP, total phosphorus; No., number; SW, surface water; RM, river mile; GW, groundwater; Q, discharge; WWTP, wastewater treatment plant; IDWR, Idaho Department of Water Resources; LT-MDL, long-term method detection limit; RL, reporting level; MRL, method reporting level; ft3/s, cubic feet per second; mg/L, milligrams per liter; lbs/d, pounds per day; kg/d, kilograms per day.
A3: Explanation | B3: Refer to the methods section of the report for a full explanation of computations used in the model. Variables explained in the methods section are provided at the top of each column where they are relevant. The equation number in the report that describes a variable is also referenced. Bold, italic sites are main-stem Boise River sites. Bold green sites are sampled returns. Column B is hidden and shows site names. Green-filled column headings indicate measured data. Yellow-filled column headings indicate measured and estimated or computed information. Light blue highlighted cells are groundwater calculations. Light orange cells show results for the measured mass balance model. Light red cells show results for the predictive mass balance model. Yellow cells in the assumed groundwater TP columns are input data for assumed groundwater TP concentrations. Dark blue headings indicate that the user can change inputs to see the resulting scenario in the predictive mass balance model. See comments in specific cells for more detailed information.
A4: Predictive Model Scenarios | B4: Use the password "model" to unlock cells described in this section. To run a scenario using the predictive model, set the assumed groundwater concentration below RM 28.8 in cell O39. Paste the selected groundwater assumptions as values into the "Assumed GW TP Dial" column M. Change desired concentrations in blue- and purple-highlighted cells in the "SW TP Concentration Dial" column. Purple-highlighted cells represent point sources and blue-highlighted cells represent nonpoint sources. View results on the "Concentration Interactive" and "Load Interactive" worksheets. To revert SW TP concentrations back to their measured values, press the "Revert" button. If the user would prefer load output in kg/d, change the conversion factor to 2.445 in the "Conversion Factor" cell T2.
A5: North Channel
A6: Explanation | B6: Abbreviations are the same as in the Oct.29.2012_Model worksheet. This worksheet shows model calculations in the North Channel. No user inputs are enabled in this worksheet.
A7: Unmeasured_Gains_Losses
A8: Explanation | B8: Abbreviations are the same as in the Oct.29.2012_Model worksheet. Variables as well as the equation in which they are defined in the report are provided at column headings. The variables computed in this worksheet are used to interpolate groundwater and TP gains throughout the modeling reach.
A9: Measured_Main_Stem_Data
A10: Explanation | B10: Abbreviations are the same as in the Oct.29.2012_Model worksheet. This worksheet shows calculations measured main-stem TP concentrations, discharges, and instantaneous loads and is used to plot those measured values on various charts. It also updates a comparison chart to view predictive versus measured model output. Mm, Cp, and Cm stand for measured model loads, predictive model concentrations, and measured model concentrations, respectively.
A11: Concentration Interactive, Load Interactive, and Discharge Calibration Plot
A12: Explanation | B12: Abbreviations are the same as in the Oct.29.2012_Model worksheet. These worksheets show model results. The Concentration Interactive worksheet shows measured model and predictive model TP concentrations. It will also show predictive model concentrations when a scenario is run on the predictive model. The measured model is static on this worksheet. The Load Interactive worksheet shows measured model and predictive model TP loads. It will also show predictive model loads when a scenario is run on the predictive model. The measured model is static on this worksheet. The blue line represents net surface-water TP loads without the influence of groundwater. The Discharge Calibration Plot worksheet shows modeled discharge as a red line. It also shows net surface-water discharge as a blue line. The distance of the read line above or below the blue line indicates the magnitude and cumulative amount of unaccounted for discharge gains and losses, respectively. The gains and losses are assumed to represent groundwater exchange in the Boise River.
A13: Major_inflows
A14: Explanation | B14: Abbreviations are the same as in the Oct.29.2012_Model worksheet. This worksheet it simply used to plot vertical lines on charts showing the location of major tributary inflows to the lower Boise River.

Sheet Oct.29.2012_Model
S1: Variable in Report | T1: Factor | U1: Conversion
S2: F | T2: 5.39378 | U2: [ft3/s ∙ mg/L] to lbs/d
S3: 1/F | T3: =1/T2 -> 0.1853987371 | U3: lbs/d to [ft3/s ∙ mg/L]
D5: Equation No. In Report | E5: 1 | F5: 5 | G5: 5 | H5: 1 | I5: 5 | K5: 1 | L5: 3 | M5: 4 | N5: 18 | O5: 18 | Q5: 14 | R5: 17 | S5: 5 | T5: 5 | U5: 7 | W5: 9 | X5: 12
D6: Variable in Report | E6: QUS, QDS, QD,or QR | F6: CUS, CDS, or CR | G6: CD | H6: = QUS - QD or + QR | I6: = MUS - MD or + MR | K6: Qgw | L6: Qgwi…n | M6: Qmi…n | N6: Cgw i…n | O6: Cgwupper i…n, Cgw = 0.25 | Q6: Cp | R6: Mp | S6: MUS, -MD, +MR | T6: ∆M | U6: ∆Mi…n | V6: Cgwbc | W6: Cm | X6: Mm
A7: Diversion, Return, or Main-stem | B7: Site Name | C7: USGS Site ID | D7: River Mile | E7: Measured Discharge | F7: Measured TP | G7: Estimated Diversion TP | H7: Net SW Discharge | I7: Net SW Load | J7: Discharge Uncertainty Propogation of Errror | K7: GW Gain/Loss per Subreach | L7: GW Gain/Loss per RM | M7: Modeled Discharge with GW Gain/Loss | N7: Estimated GW TP Dial | O7: Constant GW TP RM 28.8 to 3.8 | P7: SW TP Concentration Dial | Q7: Predictive TP Mass Balance Model | S7: SW Load In/Out | T7: Load Gain/Loss per Subreach | U7: Load In/Out per RM | V7: Back-Calculated GW TP per Reach | W7: Measured TP Mass Balance Model | Y7: Notes
D8: mile | E8: ft3/s | F8: mg/L | G8: mg/L | H8: ft3/s | I8: lbs/d | J8: ft3/s | K8: ft3/s | L8: ft3/s/mi | M8: ft3/s | N8: mg/L | O8: mg/L | P8: mg/L | Q8: mg/L | R8: lbs/d | S8: lbs/d | T8: lbs/d | U8: lbs/d/mi | V8: mg/L | W8: mg/L | X8: lbs/d
A9: M | B9: Boise River below Diversion Dam near Boise, ID | C9: 13203510 | D9: 61.1 | E9: =696-464 -> 232 | F9: 0.02 | H9: =E9 -> 232 | I9: =F9*E9*$T$2 -> 25.0271392 | L9: 0 | M9: 232 | N9: 0.01 | O9: 0.01 | P9: 0.012 | Q9: =F9 -> 0.02 | R9: =Q9*M9*$T$2 -> 25.0271392 | S9: =F9*M9*$T$2 -> 25.0271392 | T9: 0 | U9: 0 | V9: 0 | W9: =F9 -> 0.02 | X9: =W9*M9*$T$2 -> 25.0271392
A10: M | B10: Boise River at Veteran's Memorial Parkway at Boise, ID | C10: 13205642 | D10: 50.17 | E10: 234 | F10: 0.004 | H10: =E10 -> 234 | I10: =F10*E10*$T$2 -> 5.04857808 | J10: 16.61 | K10: 0 | L10: 0 | M10: =E10 -> 234 | N10: 0.01 | O10: 0.01 | P10: =F10 -> 0.004 | Q10: =P10 -> 0.004 | R10: 5.04857808 | S10: =F10*M10*$T$2 -> 5.04857808 | T10: 0 | U10: 0 | V10: 0 | W10: =F10 -> 0.004 | X10: 5.04857808 | Y10: used lab result for orthophosphurs as phosphorus; TP was not detected
A11: R | B11: Boise City Sewer Outflow at Boise, ID (Lander WWTP) | C11: 13205643 | D11: 50.01 | E11: 19.44 | F11: 0.926 | H11: =H10+E11 -> 253.44 | I11: =I10+(F11*E11*$T$2) -> 102.1443851 | L11: =(D10-D11)*Unmeasured_Gains_Losses!$B$6 -> 0.09348314607 | M11: =M10+E11+L11 -> 253.5334831 | N11: 0.01 | O11: 0.01 | P11: =F11 -> 0.926 | Q11: =((P11*E11)+(Q10*M10)+(L11*N11))/(M11) -> 0.07469772669 | R11: 102.1494274 | S11: =(F11*E11*$T$2) -> 97.09580704 | U11: =(D10-D11)*Unmeasured_Gains_Losses!$C$6 -> -1.175703438 | W11: =((W10*M10)+(F11*E11)+(U11*$T$3))/M11 -> 0.07383429532 | X11: 100.9686817
A12: D | B12: Riverside Village | D12: 47.69 | E12: 0 | G12: 0.06 | H12: =H11+E12 -> 253.44 | I12: =I11+(G12*E12*$T$2) -> 102.1443851 | L12: =(D11-D12)*Unmeasured_Gains_Losses!$B$6 -> 1.355505618 | M12: =M11+E12+L12 -> 254.8889888 | N12: 0.01 | O12: 0.01 | Q12: =((Q11*M11)+(E12*Q11)+(L12*N12))/M12 -> 0.07435366267 | R12: 102.2225404 | S12: =(G12*E12*$T$2) -> 0 | U12: =(D11-D12)*Unmeasured_Gains_Losses!$C$6 -> -17.04769985 | W12: =((W11*M11)+(E12*G12)+(U12*$T$3))/M12 -> 0.06104164845 | X12: 83.92098183
A13: M | B13: Boise River at Glenwood Bridge near Boise, ID | C13: 13206000 | D13: 47.5 | E13: 255 | F13: 0.06 | H13: =H12 -> 253.44 | I13: =I12 -> 102.1443851 | J13: 21.7 | K13: =E13-(E10+SUM(E11:E12)) -> 1.56 | L13: =(D12-D13)*Unmeasured_Gains_Losses!$B$6 -> 0.111011236 | M13: =M12+L13 -> 255 | N13: 0.01213783404 | O13: =O12+((($O$39-$O$10)/($D$10-$D$39))*(D12-D13)) -> 0.01213783404 | Q13: =((Q12*M12)+(L13*N13))/M13 -> 0.07432657774 | R13: 102.2298082 | S13: =F13*M13*$T$2 -> 82.524834 | T13: =S13-(S10+S11+S12) -> -19.61955112 | U13: =(D12-D13)*Unmeasured_Gains_Losses!$C$6 -> -1.396147833 | V13: =(T13/K13)*$T$3 -> -2.331692308 | W13: =((W12*M12)+(U13*$T$3))/M13 -> 0.06 | X13: 82.524834 | Y13: mean daily Q
A14: D | B14: New Dry Creek Canal | D14: 46.01 | E14: 0 | G14: 0.06 | H14: =H13+E14 -> 253.44 | I14: =I13+(G14*E14*$T$2) -> 102.1443851 | L14: =(D13-D14)*Unmeasured_Gains_Losses!$B$7 -> 1.819702128 | M14: =M13+E14+L14 -> 256.8197021 | N14: 0.02890295359 | O14: 0.02890295359 | Q14: =((Q13*M13)+(E14*Q13)+(L14*N14))/M14 -> 0.07400472757 | R14: 102.5134928 | S14: =(G14*E14*$T$2) -> 0 | U14: =(D13-D14)*Unmeasured_Gains_Losses!$C$7 -> -62.32947506 | W14: =((W13*M13)+(E14*G14)+(U14*$T$3))/M14 -> 0.01457907634 | X14: 20.19535894 | Y14: Not on North channel
A15: D | B15: Loss to North Channel (Boise River North Channel near Eagle, ID) | C15: 13206300 | D15: 45.51 | E15: -59.9 | F15: 0.06 | H15: 193.54 | I15: =I14+(F15*E15*$T$2) -> 82.7591398 | L15: =(D14-D15)*Unmeasured_Gains_Losses!$B$7 -> 0.6106382979 | M15: =M14+E15+L15 -> 197.5303404 | N15: 0.03452883263 | O15: 0.03452883263 | P15: =Q15 -> 0.07388269318 | Q15: =((Q14*M14)+(E15*Q14)+(L15*N15))/M15 -> 0.07388269318 | R15: 78.71722196 | S15: =(F15*E15*$T$2) -> -19.38524532 | U15: =(D14-D15)*Unmeasured_Gains_Losses!$C$7 -> -20.91593123 | W15: =((W14*M14)+(E15*W13)+(U15*$T$3))/M15 -> -0.01887099057 | X15: -20.1058176 | Y15: instantaneous Q, measured at RM 42.8. RM 45.5 Q = 59.9 + Ballentyne + Mace Mace
A16: D | B16: Lemp Canal | D16: 44.81 | E16: 0 | G16: 0.06 | H16: 193.54 | I16: =I15+(G16*E16*$T$2) -> 82.7591398 | L16: =(D15-D16)*Unmeasured_Gains_Losses!$B$7 -> 0.854893617 | M16: =M15+E16+L16 -> 198.385234 | N16: 0.04240506329 | O16: 0.04240506329 | Q16: =((Q15*M15)+(E16*Q15)+(L16*N16))/M16 -> 0.07374704788 | R16: 78.91275629 | S16: =(G16*E16*$T$2) -> 0 | U16: =(D15-D16)*Unmeasured_Gains_Losses!$C$7 -> -29.28230372 | W16: =((W15*M15)+(E16*G16)+(U16*$T$3))/M16 -> -0.04615512522 | X16: -49.38812132
A17: D | B17: Warm Springs Canal | D17: 44.5 | E17: 0 | G17: 0.06 | H17: 193.54 | I17: =I16+(G17*E17*$T$2) -> 82.7591398 | L17: =(D16-D17)*Unmeasured_Gains_Losses!$B$7 -> 0.3785957447 | M17: =M16+E17+L17 -> 198.7638298 | N17: 0.0458931083 | O17: 0.0458931083 | Q17: =((Q16*M16)+(E17*Q16)+(L17*N17))/M17 -> 0.07369399304 | R17: 79.00647287 | S17: =(G17*E17*$T$2) -> 0 | U17: =(D16-D17)*Unmeasured_Gains_Losses!$C$7 -> -12.96787736 | W17: =((W16*M16)+(E17*G17)+(U17*$T$3))/M17 -> -0.05816311457 | X17: -62.35599868
A18: R | B18: West Boise Sewer Outflow near Eagle, ID (West Boise WWTP) | C18: 13206303 | D18: 44.16 | E18: 23.16 | F18: 3.97 | H18: 216.7 | I18: =I17+(F18*E18*$T$2) -> 578.6913207 | L18: =(D17-D18)*Unmeasured_Gains_Losses!$B$7 -> 0.4152340426 | M18: =M17+E18+L18 -> 222.3390638 | N18: 0.04971870605 | O18: 0.04971870605 | P18: =F18 -> 3.97 | Q18: =((P18*E18)+(Q17*M17)+(L18*N18))/(M18) -> 0.4795088337 | R18: 575.0500078 | S18: =(F18*E18*$T$2) -> 495.9321809 | U18: =(D17-D18)*Unmeasured_Gains_Losses!$C$7 -> -14.22283323 | W18: =((W17*M17)+(E18*F18)+(U18*$T$3))/M18 -> 0.3496802583 | X18: 419.3533489
A19: D | B19: Conway-Hamming Canal | D19: 43.5 | E19: 0 | G19: 0.3 | H19: 216.7 | I19: =I18+(G19*E19*$T$2) -> 578.6913207 | L19: =(D18-D19)*Unmeasured_Gains_Losses!$B$7 -> 0.8060425532 | M19: =M18+E19+L19 -> 223.1451064 | N19: 0.05714486639 | O19: 0.05714486639 | Q19: =((Q18*M18)+(E19*Q18)+(L19*N19))/M19 -> 0.4779831748 | R19: 575.2984517 | S19: =(G19*E19*$T$2) -> 0 | U19: =(D18-D19)*Unmeasured_Gains_Losses!$C$7 -> -27.60902922 | W19: =((W18*M18)+(E19*G19)+(U19*$T$3))/M19 -> 0.3254783549 | X19: 391.7443197
A20: D | B20: Thomas Aiken Canal | D20: 43.07 | E20: 0 | G20: 0.3 | H20: 216.7 | I20: =I19+(G20*E20*$T$2) -> 578.6913207 | L20: =(D19-D20)*Unmeasured_Gains_Losses!$B$7 -> 0.5251489362 | M20: 223.6702553 | N20: 0.06198312236 | O20: 0.06198312236 | Q20: =((Q19*M19)+(E20*Q19)+(L20*N20))/M20 -> 0.4770064603 | R20: 575.4740213 | S20: =(G20*E20*$T$2) -> 0 | U20: =(D19-D20)*Unmeasured_Gains_Losses!$C$7 -> -17.98770086 | W20: =((W19*M19)+(E20*G20)+(U20*$T$3))/M20 -> 0.3098042921 | X20: 373.7566189
A21: D | B21: Mace-Catlin Canal | D21: 43.07 | E21: 0 | G21: 0.3 | H21: 216.7 | I21: =I20+(G21*E21*$T$2) -> 578.6913207 | L21: =(D20-D21)*Unmeasured_Gains_Losses!$B$7 -> 0 | M21: 223.6702553 | N21: 0.06198312236 | O21: 0.06198312236 | Q21: =((Q20*M20)+(E21*Q20)+(L21*N21))/M21 -> 0.4770064603 | R21: 575.4740213 | S21: =(G21*E21*$T$2) -> 0 | U21: =(D20-D21)*Unmeasured_Gains_Losses!$C$7 -> 0 | W21: =((W20*M20)+(E21*G21)+(U21*$T$3))/M21 -> 0.3098042921 | X21: 373.7566189
A22: D | B22: Graham-Gilbert Canal | D22: 42.85 | E22: 0 | G22: 0.3 | H22: 216.7 | I22: =I21+(G22*E22*$T$2) -> 578.6913207 | L22: =(D21-D22)*Unmeasured_Gains_Losses!$B$7 -> 0.2686808511 | M22: 223.9389362 | N22: 0.06445850914 | O22: 0.06445850914 | Q22: =((Q21*M21)+(E22*Q21)+(L22*N22))/M22 -> 0.4765114872 | R22: 575.5674349 | S22: =(G22*E22*$T$2) -> 0 | U22: =(D21-D22)*Unmeasured_Gains_Losses!$C$7 -> -9.20300974 | W22: =((W21*M21)+(E22*G22)+(U22*$T$3))/M22 -> 0.3018134313 | X22: 364.5536091
A23: M | B23: Boise River South Channel at Eagle, ID | C23: 13206305 | D23: 42.8 | E23: 224 | F23: 0.3 | H23: =H22 -> 216.7 | I23: =I22 -> 578.6913207 | J23: 12.62 | K23: =E23-(E13+(SUM(E14:E22))) -> 5.74 | L23: =(D22-D23)*Unmeasured_Gains_Losses!$B$7 -> 0.06106382979 | M23: =M22+L23 -> 224 | N23: 0.06502109705 | O23: 0.06502109705 | Q23: =((Q22*M22)+(L23*N23))/M23 -> 0.4763993123 | R23: 575.5888505 | S23: =F23*M23*$T$2 -> 362.462016 | T23: =S23-(S13+(SUM(S14:S22))) -> -196.6097535 | U23: =(D22-D23)*Unmeasured_Gains_Losses!$C$7 -> -2.091593123 | V23: =(T23/K23)*$T$3 -> -6.350383275 | W23: =((W22*M22)+(U23*$T$3))/M23 -> 0.3 | X23: 362.462016 | Y23: mean daily Q
A24: D | B24: Jon Wroten Canal | D24: 42.7 | E24: 0 | G24: 0.3 | H24: =H23+E24 -> 216.7 | I24: =I23+(G24*E24*$T$2) -> 578.6913207 | L24: =(D23-D24)*Unmeasured_Gains_Losses!$B$8 -> 2.040196078 | M24: =M23+E24+L24 -> 226.0401961 | N24: 0.06614627286 | O24: 0.06614627286 | Q24: =((Q23*M23)+(E24*Q23)+(L24*N24))/M24 -> 0.4726964459 | R24: 576.3167485 | S24: =(G24*E24*$T$2) -> 0 | U24: =(D23-D24)*Unmeasured_Gains_Losses!$C$8 -> -1.57503664 | W24: =((W23*M23)+(E24*G24)+(U24*$T$3))/M24 -> 0.2960004077 | X24: 360.8869794 | Y24: not in IDWR report
A25: D | B25: Barber Pumps | D25: 42.4 | E25: 0 | G25: 0.3 | H25: =H24+E25 -> 216.7 | I25: =I24+(G25*E25*$T$2) -> 578.6913207 | L25: =(D24-D25)*Unmeasured_Gains_Losses!$B$8 -> 6.120588235 | M25: =M24+E25+L25 -> 232.1607843 | N25: 0.06952180028 | O25: 0.06952180028 | Q25: =((Q24*M24)+(E25*Q24)+(L25*N25))/M25 -> 0.4620673209 | R25: 578.6118791 | S25: =(G25*E25*$T$2) -> 0 | U25: =(D24-D25)*Unmeasured_Gains_Losses!$C$8 -> -4.725109921 | W25: =((W24*M24)+(E25*G25)+(U25*$T$3))/M25 -> 0.284423405 | X25: 356.1618694
A26: D | B26: Seven Suckers Canal | D26: 42.02 | E26: 0 | G26: 0.3 | H26: =H25+E26 -> 216.7 | I26: =I25+(G26*E26*$T$2) -> 578.6913207 | L26: =(D25-D26)*Unmeasured_Gains_Losses!$B$8 -> 7.752745098 | M26: =M25+E26+L26 -> 239.9135294 | N26: 0.07379746835 | O26: 0.07379746835 | Q26: =((Q25*M25)+(E26*Q25)+(L26*N26))/M26 -> 0.4495204787 | R26: 581.6978384 | S26: =(G26*E26*$T$2) -> 0 | U26: =(D25-D26)*Unmeasured_Gains_Losses!$C$8 -> -5.985139233 | W26: =((W25*M25)+(E26*G26)+(U26*$T$3))/M26 -> 0.2706071795 | X26: 350.1767302
A27: R | B27: Thurman Drain at Mouth near Eagle, ID | C27: 13208750 | D27: 41.89 | E27: 5.19 | F27: 0.15 | H27: =H26+E27 -> 221.89 | I27: =I26+(F27*E27*$T$2) -> 582.8903784 | L27: =(D26-D27)*Unmeasured_Gains_Losses!$B$8 -> 2.652254902 | M27: =M26+E27+L27 -> 247.7557843 | N27: 0.07526019691 | O27: 0.07526019691 | P27: =F27 -> 0.15 | Q27: =((P27*E27)+(Q26*M26)+(L27*N27))/(M27) -> 0.439239609 | R27: 586.9735444 | S27: =(F27*E27*$T$2) -> 4.19905773 | U27: =(D26-D27)*Unmeasured_Gains_Losses!$C$8 -> -2.047547632 | W27: =((W26*M26)+(F27*E27)+(U27*$T$3))/M27 -> 0.2636516074 | X27: 352.3282403
A28: M | B28: Boise River above Phyllis Diversion near Eagle, ID | C28: 13208800 | D28: 41.78 | E28: 250 | F28: 0.26 | H28: =H27 -> 221.89 | I28: =I27 -> 582.8903784 | J28: 36.04 | K28: =E28-(E23+SUM(E24:E27)) -> 20.81 | L28: =(D27-D28)*Unmeasured_Gains_Losses!$B$8 -> 2.244215686 | M28: =M27+L28 -> 250 | N28: 0.0764978903 | O28: 0.0764978903 | Q28: =((Q27*M27)+(L28*N28))/M28 -> 0.4359833264 | R28: 587.8995365 | S28: =F28*M28*$T$2 -> 350.5957 | T28: =S28-(S23+(SUM(S24:S27))) -> -16.06537373 | U28: =(D27-D28)*Unmeasured_Gains_Losses!$C$8 -> -1.732540304 | V28: =(T28/K28)*$T$3 -> -0.1431283037 | W28: =((W27*M27)+(U28*$T$3))/M28 -> 0.26 | X28: 350.5957
A29: D | B29: Phyllis Canal | D29: 41.41 | E29: 0 | G29: 0.26 | H29: =H28+E29 -> 221.89 | I29: =I28+(G29*E29*$T$2) -> 582.8903784 | L29: =(D28-D29)*Unmeasured_Gains_Losses!$B$9 -> 0.7990610329 | M29: =M28+E29+L29 -> 250.799061 | N29: 0.08066104079 | O29: 0.08066104079 | Q29: =((Q28*M28)+(E29*Q28)+(L29*N29))/M29 -> 0.434851248 | R29: 588.2471823 | S29: =(G29*E29*$T$2) -> 0 | U29: =(D28-D29)*Unmeasured_Gains_Losses!$C$9 -> -0.89197421 | W29: =((W28*M28)+(E29*G29)+(U29*$T$3))/M29 -> 0.2585122482 | X29: 349.7037258
A30: M | B30: GAIN FROM NORTH CHANNEL | C30: Gain from N. Channel | D30: 40.2 | E30: =North_Channel!L16 -> 81.4 | F30: 0.08 | H30: =H29+E30 -> 303.29 | I30: =I29+(F30*E30*$T$2) -> 618.0146737 | L30: =(D29-D30)*Unmeasured_Gains_Losses!$B$9 -> 2.61314554 | M30: =M29+E30+L30 -> 334.8122066 | N30: 0.09427566807 | O30: 0.09427566807 | P30: =North_Channel!P16 -> 0.08815895237 | Q30: =((P30*E30)+(Q29*M29)+(L30*N30))/(M30) -> 0.347904817 | R30: 628.2824861 | S30: =(F30*E30*$T$2) -> 35.12429536 | U30: =(D29-D30)*Unmeasured_Gains_Losses!$C$9 -> -2.916996741 | W30: =((W29*M29)+(F30*E30)+(U30*$T$3))/M30 -> 0.2114792119 | X30: 381.9110244 | Y30: TP result from North Channel sample upstream (RM 41.8)
A31: M | B31: Boise River Below Eagle Island, ID | C31: 434050116260100 | D31: 39.65 | E31: 336 | F31: 0.21 | H31: =H30 -> 303.29 | I31: =I30 -> 618.0146737 | J31: 42.16 | K31: =E31-(E28+SUM(E29:E30)) -> 4.6 | L31: =(D30-D31)*Unmeasured_Gains_Losses!$B$9 -> 1.187793427 | M31: =M30+L31 -> 336 | N31: 0.100464135 | O31: 0.100464135 | Q31: =((Q30*M30)+(L31*N31))/M31 -> 0.3470300895 | R31: 628.9261293 | S31: =F31*M31*$T$2 -> 380.5851168 | T31: =S31-(S28+(SUM(S29:S30))) -> -5.13487856 | U31: =(D30-D31)*Unmeasured_Gains_Losses!$C$9 -> -1.325907609 | V31: =(T31/K31)*$T$3 -> -0.2069565217 | W31: =((W30*M30)+(U31*$T$3))/M31 -> 0.21 | X31: 380.5851168
A32: R | B32: Eureka No. 1 Canal at Star Road near Star, ID | C32: 13209490 | D32: 36.63 | E32: 0.84 | F32: 0.15 | H32: =H31+E32 -> 304.13 | I32: =I31+(F32*E32*$T$2) -> 618.69429 | L32: =(D31-D32)*Unmeasured_Gains_Losses!$B$10 -> 19.66252308 | M32: =M31+E32+L32 -> 356.5025231 | N32: 0.1344444444 | O32: 0.1344444444 | P32: =F32 -> 0.15 | Q32: =((P32*E32)+(Q31*M31)+(L32*N32))/M32 -> 0.3348409039 | R32: 643.8642947 | S32: =(F32*E32*$T$2) -> 0.67961628 | U32: =(D31-D32)*Unmeasured_Gains_Losses!$C$10 -> 58.41062111 | W32: =((W31*M31)+(F32*E32)+(U32*$T$3))/M32 -> 0.2286526745 | X32: 439.6753542
A33: M | B33: Boise River near Star, ID | C33: 13210000 | D33: 36.4 | E33: 358 | F33: 0.23 | H33: =H32 -> 304.13 | I33: =I32 -> 618.69429 | J33: 34.86 | K33: =E33-(E31+SUM(E32)) -> 21.16 | L33: =(D32-D33)*Unmeasured_Gains_Losses!$B$10 -> 1.497476923 | M33: =M32+L33 -> 358 | N33: 0.1370323488 | O33: 0.1370323488 | Q33: =((Q32*M32)+(L33*N33))/M33 -> 0.3340134912 | R33: 644.9711134 | S33: =F33*M33*$T$2 -> 444.1238452 | T33: =S33-(S31+S32) -> 62.85911212 | U33: =(D32-D33)*Unmeasured_Gains_Losses!$C$10 -> 4.448491012 | V33: =(T33/K33)*$T$3 -> 0.5507561437 | W33: =((W32*M32)+(U33*$T$3))/M33 -> 0.23 | X33: 444.1238452
A34: D | B34: Canyon County Canal | D34: 36.32 | E34: 0 | G34: 0.23 | H34: =H33+E34 -> 304.13 | I34: =I33+(G34*E34*$T$2) -> 618.69429 | L34: =(D33-D34)*Unmeasured_Gains_Losses!$B$11 -> 0.9175050302 | M34: =M33+E34+L34 -> 358.917505 | N34: 0.1379324895 | O34: 0.1379324895 | Q34: =((Q33*M33)+(E34*Q33)+(L34*N34))/M34 -> 0.3335122471 | R34: 645.6537165 | S34: =(G34*E34*$T$2) -> 0 | U34: =(D33-D34)*Unmeasured_Gains_Losses!$C$11 -> 3.300081735 | W34: =((W33*M33)+(E34*G34)+(U34*$T$3))/M34 -> 0.2311167046 | X34: 447.4239269
A35: D | B35: Caldwell Highline Canal | D35: 36.27 | E35: 0 | G35: 0.23 | H35: =H34+E35 -> 304.13 | I35: =I34+(G35*E35*$T$2) -> 618.69429 | L35: =(D34-D35)*Unmeasured_Gains_Losses!$B$11 -> 0.5734406439 | M35: =M34+E35+L35 -> 359.4909457 | N35: 0.1384950774 | O35: 0.1384950774 | Q35: =((Q34*M34)+(E35*Q34)+(L35*N35))/M35 -> 0.3332011661 | R35: 646.0820835 | S35: =(G35*E35*$T$2) -> 0 | U35: =(D34-D35)*Unmeasured_Gains_Losses!$C$11 -> 2.062551085 | W35: =((W34*M34)+(E35*G35)+(U35*$T$3))/M35 -> 0.2318117504 | X35: 449.486478
A36: D | B36: Otter Mitigation | D36: 35.74 | E36: 0 | G36: 0.23 | H36: =H35+E36 -> 304.13 | I36: =I35+(G36*E36*$T$2) -> 618.69429 | L36: =(D35-D36)*Unmeasured_Gains_Losses!$B$11 -> 6.078470825 | M36: =M35+E36+L36 -> 365.5694165 | N36: 0.1444585091 | O36: 0.1444585091 | Q36: =((Q35*M35)+(E36*Q35)+(L36*N36))/M36 -> 0.3300628655 | R36: 650.8182907 | S36: =(G36*E36*$T$2) -> 0 | U36: =(D35-D36)*Unmeasured_Gains_Losses!$C$11 -> 21.8630415 | W36: =((W35*M35)+(E36*G36)+(U36*$T$3))/M36 -> 0.2390451763 | X36: 471.3495195
A37: M | B37: Boise River near Middleton, ID | C37: 13210050 | D37: 31.43 | E37: 415 | F37: 0.29 | H37: =H36 -> 304.13 | I37: =I36 -> 618.69429 | J37: 48.67 | K37: =E37-(E33+SUM(E34:E36)) -> 57 | L37: =(D36-D37)*Unmeasured_Gains_Losses!$B$11 -> 49.4305835 | M37: =M36+L37 -> 415 | N37: 0.1929535865 | O37: 0.1929535865 | Q37: =((Q36*M36)+(L37*N37))/M37 -> 0.3137318013 | R37: 702.2631307 | S37: =F37*M37*$T$2 -> 649.141423 | T37: =S37-(S33+(SUM(S34:S36))) -> 205.0175778 | U37: =(D36-D37)*Unmeasured_Gains_Losses!$C$11 -> 177.7919035 | V37: =(T37/K37)*$T$3 -> 0.6668421053 | W37: =((W36*M36)+(U37*$T$3))/M37 -> 0.29 | X37: 649.141423 | Y37: Idaho Power Gage - mean daily Q
A38: R | B38: Fifteenmile Creek at Mouth near Middleton, ID | C38: 13210815 | D38: 30.31 | E38: 30.9 | F38: 0.6 | H38: =H37+E38 -> 335.03 | I38: =I37+(F38*E38*$T$2) -> 718.6949712 | L38: =(D37-D38)*Unmeasured_Gains_Losses!$B$12 -> -3.416216216 | M38: =M37+E38+L38 -> 442.4837838 | N38: 0.2055555556 | O38: 0.2055555556 | P38: =F38 -> 0.6 | Q38: =((P38*E38)+(Q37*M37)+(L38*Q37))/M38 -> 0.3337227877 | R38: 796.4828898 | S38: =(F38*E38*$T$2) -> 100.0006812 | U38: =(D37-D38)*Unmeasured_Gains_Losses!$C$12 -> -17.47001609 | W38: =((W37*M37)+(F38*E38)+(U38*$T$3))/M38 -> 0.3065673502 | X38: 731.6720881 | Y38: includes Fivemile Creek + Meridian WWTP + Tenmile Creek
A39: M | B39: Boise River at Middleton Road near Middleton, ID | C39: 13210820 | D39: 28.84 | E39: 438 | F39: 0.3 | H39: =H38 -> 335.03 | I39: =I38 -> 718.6949712 | J39: 44.25 | K39: =E39-(E37+E38) -> -7.9 | L39: =(D38-D39)*Unmeasured_Gains_Losses!$B$12 -> -4.483783784 | M39: =M38+L39 -> 438 | N39: 0.25 | O39: 0.25 | Q39: =((Q38*M38)+(L39*Q38))/M39 -> 0.3337227877 | R39: 788.4119565 | S39: =F39*M39*$T$2 -> 708.742692 | T39: =S39-(S37+S38) -> -40.3994122 | U39: =(D38-D39)*Unmeasured_Gains_Losses!$C$12 -> -22.92939611 | V39: =(T39/K39)*$T$3 -> 0.9481012658 | W39: =((W38*M38)+(U39*$T$3))/M39 -> 0.3 | X39: 708.742692
A40: R | B40: Mill Slough below Grade Ditch near Middleton, ID | C40: 132108247 | D40: 27.23 | E40: 71.1 | F40: 0.2 | H40: =H39+E40 -> 406.13 | I40: =I39+(F40*E40*$T$2) -> 795.3945228 | L40: =(D39-D40)*Unmeasured_Gains_Losses!$B$13 -> 16.08343621 | M40: =M39+E40+L40 -> 525.1834362 | N40: 0.25 | O40: =O39 -> 0.25 | P40: =F40 -> 0.2 | Q40: =((P40*E40)+(Q39*M39)+(L40*N40))/M40 -> 0.3130552655 | R40: 886.7991373 | S40: =(F40*E40*$T$2) -> 76.6995516 | U40: =(D39-D40)*Unmeasured_Gains_Losses!$C$13 -> 25.26271532 | W40: =((W39*M39)+(F40*E40)+(U40*$T$3))/M40 -> 0.2861927189 | X40: 810.7049589 | Y40: sum of North and South Middleton Drains, Star, Watts, Long Feeders. Middleton WWTP discharges below sampling location
A41: R | B41: Middleton WWTP on Boise River near Middleton, ID | C41: 434149116382200 | D41: 27.1 | E41: 1.01 | F41: 3.62 | H41: 407.14 | I41: 815.1152613 | L41: =(D40-D41)*Unmeasured_Gains_Losses!$B$13 -> 1.298662551 | M41: 527.4920988 | N41: 0.25 | O41: =O40 -> 0.25 | P41: =F41 -> 3.62 | Q41: =((P41*E41)+(Q40*M40)+(L41*N41))/M41 -> 0.3192319015 | R41: =Q41*M41*$T$2 -> 908.2710508 | S41: 19.72073844 | U41: =(D40-D41)*Unmeasured_Gains_Losses!$C$13 -> 2.039846578 | W41: =((W40*M40)+(E41*F41)+(U41*$T$3))/M41 -> 0.2925883835 | X41: =W41*M41*$T$2 -> 832.4655439 | Y41: 1.0 ft3/s on 8/22/12
A42: R | B42: Willow Creek at Middleton, ID | C42: 13210835 | D42: 26.95 | E42: 1.48 | F42: 0.21 | H42: 408.62 | I42: 816.7916481 | L42: =(D41-D42)*Unmeasured_Gains_Losses!$B$13 -> 1.49845679 | M42: 530.4705556 | N42: 0.25 | O42: =O41 -> 0.25 | P42: =F42 -> 0.21 | Q42: =((P42*E42)+(Q41*M41)+(L42*N42))/M42 -> 0.318731583 | R42: 911.9680241 | S42: 1.676386824 | U42: =(D41-D42)*Unmeasured_Gains_Losses!$C$13 -> 2.353669129 | W42: =((W41*M41)+(F42*E42)+(U42*$T$3))/M42 -> 0.2923540735 | X42: 836.4955999
A43: R | B43: Mason Slough near Caldwell, ID | C43: 13210849 | D43: 25.57 | E43: 6.67 | F43: 0.13 | H43: 415.29 | I43: 821.4685947 | L43: =(D42-D43)*Unmeasured_Gains_Losses!$B$13 -> 13.78580247 | M43: 550.926358 | N43: 0.25 | O43: =O42 -> 0.25 | P43: =F43 -> 0.13 | Q43: =((P43*E43)+(Q42*M42)+(L43*N43))/M43 -> 0.3147267652 | R43: 935.2343672 | S43: 4.676946638 | U43: =(D42-D43)*Unmeasured_Gains_Losses!$C$13 -> 21.65375599 | W43: =((W42*M42)+(F43*E43)+(U43*$T$3))/M43 -> 0.290359872 | X43: 862.8263025
A44: R | B44: Mason Creek near Caldwell, ID | C44: 13210983 | D44: 24.95 | E44: 66.1 | F44: 0.18 | H44: 481.39 | I44: 885.6437892 | L44: =(D43-D44)*Unmeasured_Gains_Losses!$B$13 -> 6.193621399 | M44: 623.2199794 | N44: 0.25 | O44: 0.25 | P44: =F44 -> 0.18 | Q44: =((P44*E44)+(Q43*M43)+(L44*N44))/M44 -> 0.2997941049 | R44: 1007.761319 | S44: 64.17519444 | U44: =(D43-D44)*Unmeasured_Gains_Losses!$C$13 -> 9.728499066 | W44: =((W43*M43)+(F44*E44)+(U44*$T$3))/M44 -> 0.2786633355 | X44: 936.729996
A45: D | B45: Riverside Canal at HWY 20-26 Xing at Caldwell, ID | C45: 132109853 | D45: 24.57 | E45: -2.44 | F45: 0.23 | H45: 478.95 | I45: 882.6167998 | L45: =(D44-D45)*Unmeasured_Gains_Losses!$B$13 -> 3.796090535 | M45: 624.57607 | N45: 0.25 | O45: 0.25 | Q45: =((Q44*M44)+(L45*N45)+(E45*Q44))/M45 -> 0.2994914629 | R45: 1008.934602 | S45: -3.026989336 | U45: =(D44-D45)*Unmeasured_Gains_Losses!$C$13 -> 5.96262846 | W45: =((W44*M44)+(F45*E45)+(U45*$T$3))/M45 -> 0.2789297099 | X45: 939.6656351
A46: R | B46: Hartley Drain near Caldwell, ID | C46: 13210988 | D46: 24.43 | E46: 7.53 | F46: 0.36 | H46: 486.48 | I46: 897.2382587 | L46: =(D45-D46)*Unmeasured_Gains_Losses!$B$13 -> 1.398559671 | M46: 633.5046296 | N46: 0.25 | O46: 0.25 | P46: =F46 -> 0.36 | Q46: =((P46*E46)+(Q45*M45)+(L46*N46))/M46 -> 0.300101423 | R46: 1025.441941 | S46: 14.62145882 | U46: =(D45-D46)*Unmeasured_Gains_Losses!$C$13 -> 2.196757854 | W46: =((W45*M45)+(F46*E46)+(U46*$T$3))/M46 -> 0.2799204455 | X46: 956.4838518
A47: D | B47: Sebree Canal | D47: 24.03 | E47: 0 | G47: 0.28 | H47: 486.48 | I47: =I46+(G47*E47*$T$2) -> 897.2382587 | L47: =(D46-D47)*Unmeasured_Gains_Losses!$B$13 -> 3.995884774 | M47: =M46+E47+L47 -> 637.5005144 | N47: 0.25 | O47: =O46 -> 0.25 | Q47: =((Q46*M46)+(E47*Q46)+(L47*N47))/M47 -> 0.2997873848 | R47: 1030.830172 | S47: =(G47*E47*$T$2) -> 0 | U47: =(D46-D47)*Unmeasured_Gains_Losses!$C$13 -> 6.27645101 | W47: =((W46*M46)+(E47*G47)+(U47*$T$3))/M47 -> 0.279991216 | X47: 962.7603028 | Y47: Also known as Farmer's Co-op Ditch
A48: D | B48: Campbell Canal | D48: 24.02 | E48: 0 | G48: 0.28 | H48: 486.48 | I48: =I47+(G48*E48*$T$2) -> 897.2382587 | L48: =(D47-D48)*Unmeasured_Gains_Losses!$B$13 -> 0.09989711934 | M48: =M47+E48+L48 -> 637.6004115 | N48: 0.25 | O48: 0.25 | Q48: =((Q47*M47)+(E48*Q47)+(L48*N48))/M48 -> 0.2997795843 | R48: 1030.964878 | S48: =(G48*E48*$T$2) -> 0 | U48: =(D47-D48)*Unmeasured_Gains_Losses!$C$13 -> 0.1569112753 | W48: =((W47*M47)+(E48*G48)+(U48*$T$3))/M48 -> 0.2799929739 | X48: 962.9172141 | Y48: Include this in model because Campbell Canal is diverted before Sebree Canal is measured
A49: M | B49: Boise River at HWY 20-26 Crossing near Caldwell, ID | C49: 13211000 | D49: 23.98 | E49: 638 | F49: 0.28 | H49: =H48 -> 486.48 | I49: =I48 -> 897.2382587 | J49: 60.95 | K49: =E49-(E39+(SUM(E40:E48))) -> 48.55 | L49: =(D48-D49)*Unmeasured_Gains_Losses!$B$13 -> 0.3995884774 | M49: =M48+L49 -> 638 | N49: 0.25 | O49: 0.25 | Q49: =((Q48*M48)+(L49*N49))/M49 -> 0.2997484066 | R49: 1031.503701 | S49: =F49*M49*$T$2 -> 963.5448592 | T49: =S49-(S39+(SUM(S40:S48))) -> 76.25887977 | U49: =(D48-D49)*Unmeasured_Gains_Losses!$C$13 -> 0.627645101 | V49: =(T49/K49)*$T$3 -> 0.2912111226 | W49: =((W48*M48)+(U49*$T$3))/M49 -> 0.28 | X49: 963.5448592 | Y49: Measuring section did not include Seebree Q or Campbell Q, WQ at Seebree & Cambell assumed the same
A50: D | B50: Shipley Pumps | D50: 23.19 | E50: 0 | G50: 0.28 | H50: =H49+E50 -> 486.48 | I50: =I49+(G50*E50*$T$2) -> 897.2382587 | L50: =(D49-D50)*Unmeasured_Gains_Losses!$B$14 -> -8.147843137 | M50: =M49+E50+L50 -> 629.8521569 | N50: 0.25 | O50: 0.25 | Q50: =((Q49*M49)+(E50*Q49)+(L50*Q49))/M50 -> 0.2997484066 | R50: 1018.330456 | S50: =(G50*E50*$T$2) -> 0 | U50: =(D49-D50)*Unmeasured_Gains_Losses!$C$14 -> -56.5123633 | W50: =((W49*M49)+(E50*G50)+(U50*$T$3))/M50 -> 0.2669875421 | X50: 907.0324959
A51: D | B51: Wagner Pumps | D51: 23.09 | E51: 0 | G51: 0.28 | H51: =H50+E51 -> 486.48 | I51: =I50+(G51*E51*$T$2) -> 897.2382587 | L51: =(D50-D51)*Unmeasured_Gains_Losses!$B$14 -> -1.031372549 | M51: =M50+E51+L51 -> 628.8207843 | N51: 0.25 | O51: 0.25 | Q51: =((Q50*M50)+(E51*Q50)+(L51*Q50))/M51 -> 0.2997484066 | R51: 1016.662956 | S51: =(G51*E51*$T$2) -> 0 | U51: =(D50-D51)*Unmeasured_Gains_Losses!$C$14 -> -7.153463709 | W51: =((W50*M50)+(E51*G51)+(U51*$T$3))/M51 -> 0.2653163512 | X51: 899.8790322
A52: R | B52: Caldwell WWTP on Boise River at Caldwell, ID | C52: 434038116420900 | D52: 22.55 | E52: 8.35 | F52: 0.372 | H52: =H51+E52 -> 494.83 | I52: =I51+(F52*E52*$T$2) -> 913.9924181 | L52: =(D51-D52)*Unmeasured_Gains_Losses!$B$14 -> -5.569411765 | M52: =M51+E52+L52 -> 631.6013725 | N52: 0.25 | O52: 0.25 | P52: =F52 -> 0.372 | Q52: =((P52*E52)+(Q51*M51)+(L52*Q51))/M52 -> 0.300703599 | R52: 1024.412619 | S52: =(F52*E52*$T$2) -> 16.75415944 | U52: =(D51-D52)*Unmeasured_Gains_Losses!$C$14 -> -38.62870403 | W52: =((W51*M51)+(E52*F52)+(U52*$T$3))/M52 -> 0.2577273106 | X52: 878.0044876
A53: R | B53: Indian Creek at Mouth near Caldwell, ID | C53: 13211445 | D53: 22.44 | E53: 2.95 | F53: 0.54 | H53: =H52+E53 -> 497.78 | I53: =I52+(F53*E53*$T$2) -> 922.5847096 | L53: =(D52-D53)*Unmeasured_Gains_Losses!$B$14 -> -1.134509804 | M53: =M52+E53+L53 -> 633.4168627 | N53: 0.25 | O53: 0.25 | P53: =F53 -> 0.54 | Q53: =((P53*E53)+(Q52*M52)+(L53*Q52))/M53 -> 0.3018180694 | R53: 1031.164816 | S53: =(F53*E53*$T$2) -> 8.59229154 | U53: =(D52-D53)*Unmeasured_Gains_Losses!$C$14 -> -7.86881008 | W53: =((W52*M52)+(F53*E53)+(U53*$T$3))/M53 -> 0.2572003767 | X53: 878.7279691
A54: M | B54: Boise River below WWTP near Caldwell, ID | C54: 13211600 | D54: 21.43 | E54: 623 | F54: 0.24 | H54: =H53 -> 497.78 | I54: =I53 -> 922.5847096 | J54: 62.83 | K54: =E54-(E49+(SUM(E50:E53))) -> -26.3 | L54: =(D53-D54)*Unmeasured_Gains_Losses!$B$14 -> -10.41686275 | M54: =M53+L54 -> 623 | N54: 0.25 | O54: 0.25 | Q54: =((Q53*M53)+(L54*Q53))/M54 -> 0.3018180694 | R54: 1014.206786 | S54: =F54*M54*$T$2 -> 806.4779856 | T54: =S54-(S49+(SUM(S50:S53))) -> -182.4133246 | U54: =(D53-D54)*Unmeasured_Gains_Losses!$C$14 -> -72.24998346 | V54: =(T54/K54)*$T$3 -> 1.285901141 | W54: =((W53*M53)+(U54*$T$3))/M54 -> 0.24 | X54: 806.4779856
A55: D | B55: Simplot Pumps | D55: 20.08 | E55: 0 | G55: 0.24 | H55: =H54+E55 -> 497.78 | I55: =I54+(G55*E55*$T$2) -> 922.5847096 | L55: =(D54-D55)*Unmeasured_Gains_Losses!$B$15 -> -9.826689775 | M55: =M54+E55+L55 -> 613.1733102 | N55: 0.25 | O55: 0.25 | Q55: =((Q54*M54)+(E55*Q54)+(L55*Q54))/M55 -> 0.3018180694 | R55: 998.2095221 | S55: =(G55*E55*$T$2) -> 0 | U55: =(D54-D55)*Unmeasured_Gains_Losses!$C$15 -> 16.60760754 | W55: =((W54*M54)+(E55*G55)+(U55*$T$3))/M55 -> 0.2488676968 | X55: 823.0855931
A56: D | B56: Eureka No.2 Canal | D56: 20.08 | E56: 0 | G56: 0.24 | H56: 497.78 | I56: 922.5847096 | L56: =(D55-D56)*Unmeasured_Gains_Losses!$B$15 -> 0 | M56: =M55+E56+L56 -> 613.1733102 | N56: 0.25 | O56: 0.25 | Q56: 0.3018180694 | R56: 998.2095221 | S56: 0 | U56: =(D55-D56)*Unmeasured_Gains_Losses!$C$15 -> 0 | W56: 0.2488676968 | X56: 823.0855931
A57: D | B57: Upper Center Point Canal | D57: 20.08 | E57: 0 | G57: 0.24 | H57: 497.78 | I57: 922.5847096 | L57: =(D56-D57)*Unmeasured_Gains_Losses!$B$15 -> 2.586030754e-14 | M57: 613.1733102 | N57: 0.25 | O57: =O56 -> 0.25 | Q57: 0.3018180694 | R57: 998.2095221 | S57: 0 | U57: =(D56-D57)*Unmeasured_Gains_Losses!$C$15 -> -4.370524034e-14 | W57: 0.2488676968 | X57: 823.0855931
A58: D | B58: McManus and Teater Canal | D58: 20 | E58: 0 | G58: 0.24 | H58: 497.78 | I58: 922.5847096 | L58: =(D57-D58)*Unmeasured_Gains_Losses!$B$15 -> -0.582322357 | M58: 612.5909879 | N58: 0.25 | O58: 0.25 | Q58: 0.3018180694 | R58: 997.261536 | S58: 0 | U58: =(D57-D58)*Unmeasured_Gains_Losses!$C$15 -> 0.9841545206 | W58: 0.249402119 | X58: 824.0697477
A59: D | B59: Vale Pumps | D59: 19.07 | E59: 0 | G59: 0.24 | H59: 497.78 | I59: 922.5847096 | L59: =(D58-D59)*Unmeasured_Gains_Losses!$B$15 -> -6.7694974 | M59: 605.8214905 | N59: 0.25 | O59: 0.25 | Q59: 0.3018180694 | R59: 986.2411986 | S59: 0 | U59: =(D58-D59)*Unmeasured_Gains_Losses!$C$15 -> 11.4407963 | W59: 0.2556901696 | X59: 835.510544
A60: D | B60: Lower Center Point Canal | D60: 18.06 | E60: 0 | G60: 0.24 | H60: 497.78 | I60: 922.5847096 | L60: =(D59-D60)*Unmeasured_Gains_Losses!$B$15 -> -7.351819757 | M60: 598.4696707 | N60: 0.25 | O60: 0.25 | Q60: 0.3018180694 | R60: 974.2728752 | S60: 0 | U60: =(D59-D60)*Unmeasured_Gains_Losses!$C$15 -> 12.42495082 | W60: 0.2626802619 | X60: 847.9354948
A61: M | B61: Boise River at Notus, ID | C61: 13212500 | D61: 15.66 | E61: 581 | F61: 0.28 | H61: =H60 -> 497.78 | I61: =I60 -> 922.5847096 | J61: 45.34 | K61: =E61-(E54+(SUM(E55:E60))) -> -42 | L61: =(D60-D61)*Unmeasured_Gains_Losses!$B$15 -> -17.46967071 | M61: =M60+L61 -> 581 | N61: 0.25 | O61: =O60 -> 0.25 | Q61: =((Q60*M60)+(L61*Q60))/M61 -> 0.3018180694 | R61: 945.8332948 | S61: =F61*M61*$T$2 -> 877.4601304 | T61: =S61-(S54+(SUM(S55:S60))) -> 70.9821448 | U61: =(D60-D61)*Unmeasured_Gains_Losses!$C$15 -> 29.52463562 | V61: =(T61/K61)*$T$3 -> -0.3133333333 | W61: =((W60*M60)+(U61*$T$3))/M61 -> 0.28 | X61: 877.4601304
A62: D | B62: Bowman and Swisher Canal | D62: 14.98 | E62: 0 | G62: 0.28 | H62: =H61+E62 -> 497.78 | I62: =I61+(G62*E62*$T$2) -> 922.5847096 | L62: =(D61-D62)*Unmeasured_Gains_Losses!$B$16 -> -0.4539912917 | M62: 580.5460087 | N62: 0.25 | O62: 0.25 | Q62: =((Q61*M61)+(E62*Q61)+(L62*Q61))/M62 -> 0.3018180694 | R62: 945.0942241 | S62: =(G62*E62*$T$2) -> 0 | U62: =(D61-D62)*Unmeasured_Gains_Losses!$C$16 -> -8.243699915 | W62: =((W61*M61)+(E62*G62)+(U62*$T$3))/M62 -> 0.2775863171 | X62: 869.2164305
A63: R | B63: Conway Gulch at Notus. ID | C63: 13212550 | D63: 14.22 | E63: 17.7 | F63: 0.2 | H63: 515.48 | I63: =I62+(F63*E63*$T$2) -> 941.6786908 | L63: =(D62-D63)*Unmeasured_Gains_Losses!$B$16 -> -0.5074020319 | M63: =M62+E63+L63 -> 597.7386067 | N63: 0.25 | O63: 0.25 | P63: =F63 -> 0.2 | Q63: =((P63*E63)+(Q62*M62)+(L63*Q62))/M63 -> 0.2988030729 | R63: 963.3621851 | S63: =(F63*E63*$T$2) -> 19.0939812 | U63: =(D62-D63)*Unmeasured_Gains_Losses!$C$16 -> -9.213546964 | W63: =((W62*M62)+(F63*E63)+(U63*$T$3))/M63 -> 0.2726667588 | X63: 879.0968647 | Y63: includes Notus WWTP - seasonal discharge not during synoptic
A64: D | B64: Baxter Canal | D64: 13.33 | E64: 0 | G64: 0.28 | H64: 515.48 | I64: =I63+(G64*E64*$T$2) -> 941.6786908 | L64: =(D63-D64)*Unmeasured_Gains_Losses!$B$16 -> -0.5941944848 | M64: 597.1444122 | N64: 0.25 | O64: 0.25 | Q64: =((Q63*M63)+(E64*Q63)+(L64*Q63))/M64 -> 0.2988030729 | R64: 962.4045349 | S64: =(G64*E64*$T$2) -> 0 | U64: =(D63-D64)*Unmeasured_Gains_Losses!$C$16 -> -10.78954842 | W64: =((W63*M63)+(E64*G64)+(U64*$T$3))/M64 -> 0.2695881876 | X64: 868.3073163
A65: R | B65: Unnamed Drain Near Notus, ID | C65: 434335116510400 | D65: 12.33 | E65: 13.3 | F65: 0.24 | H65: 528.78 | I65: =I64+(F65*E65*$T$2) -> 958.8956366 | L65: =(D64-D65)*Unmeasured_Gains_Losses!$B$16 -> -0.6676342525 | M65: =M64+E65+L65 -> 609.7767779 | N65: 0.25 | O65: 0.25 | P65: =F65 -> 0.24 | Q65: =((P65*E65)+(Q64*M64)+(L65*Q64))/M65 -> 0.2975205038 | R65: 978.5454692 | S65: =(F65*E65*$T$2) -> 17.21694576 | U65: =(D64-D65)*Unmeasured_Gains_Losses!$C$16 -> -12.12308811 | W65: =((W64*M64)+(F65*E65)+(U65*$T$3))/M65 -> 0.2655520519 | X65: 873.401174
A66: D | B66: Andrews Canal | D66: 11.09 | E66: 0 | G66: 0.28 | H66: 528.78 | I66: =I65+(G66*E66*$T$2) -> 958.8956366 | L66: =(D65-D66)*Unmeasured_Gains_Losses!$B$16 -> -0.8278664731 | M66: =M65+E66+L66 -> 608.9489115 | N66: 0.25 | O66: 0.25 | Q66: =((Q65*M65)+(E66*Q65)+(L66*Q65))/M66 -> 0.2975205038 | R66: 977.2169421 | S66: =(G66*E66*$T$2) -> 0 | U66: =(D65-D66)*Unmeasured_Gains_Losses!$C$16 -> -15.03262926 | W66: =((W65*M65)+(E66*G66)+(U66*$T$3))/M66 -> 0.2613362815 | X66: 858.3685447
A67: R | B67: Unnamed Drain Near Dixie Drain near Notus, ID | C67: 434348116523600 | D67: 10.93 | E67: 16.6 | F67: 0.19 | H67: 545.38 | I67: =I66+(F67*E67*$T$2) -> 975.9076187 | L67: =(D66-D67)*Unmeasured_Gains_Losses!$B$16 -> -0.1068214804 | M67: 625.44209 | N67: 0.25 | O67: 0.25 | P67: =F67 -> 0.19 | Q67: =((P67*E67)+(Q66*M66)+(L67*Q66))/M67 -> 0.2946667777 | R67: 994.0575014 | S67: =(F67*E67*$T$2) -> 17.01198212 | U67: =(D66-D67)*Unmeasured_Gains_Losses!$C$16 -> -1.939694098 | W67: =((W66*M66)+(F67*E67)+(U67*$T$3))/M67 -> 0.2589125834 | X67: 873.4408327
A68: R | B68: Dixie Drain near Wilder, ID | C68: 13212890 | D68: 10.53 | E68: 294 | F68: 0.34 | H68: 839.38 | I68: =I67+(F68*E68*$T$2) -> 1515.069868 | L68: =(D67-D68)*Unmeasured_Gains_Losses!$B$16 -> -0.267053701 | M68: 919.1750363 | N68: 0.25 | O68: 0.25 | P68: =F68 -> 0.34 | Q68: =((P68*E68)+(Q67*M67)+(L68*Q67))/M68 -> 0.3091667008 | R68: 1532.795304 | S68: =(F68*E68*$T$2) -> 539.1622488 | U68: =(D67-D68)*Unmeasured_Gains_Losses!$C$16 -> -4.849235244 | W68: =((W67*M67)+(F68*E68)+(U68*$T$3))/M68 -> 0.2839456849 | X68: 1407.753846
A69: D | B69: Mammon Pumps | D69: 10 | E69: 0 | G69: 0.28 | H69: 839.38 | I69: =I68+(G69*E69*$T$2) -> 1515.069868 | L69: =(D68-D69)*Unmeasured_Gains_Losses!$B$16 -> -0.3538461538 | M69: =M68+E69+L69 -> 918.8211901 | N69: 0.25 | O69: 0.25 | Q69: =((Q68*M68)+(E69*Q68)+(L69*Q68))/M69 -> 0.3091667008 | R69: 1532.205238 | S69: =(G69*E69*$T$2) -> 0 | U69: =(D68-D69)*Unmeasured_Gains_Losses!$C$16 -> -6.425236698 | W69: =((W68*M68)+(E69*G69)+(U69*$T$3))/M69 -> 0.2827585576 | X69: 1401.32861
A70: M | B70: Boise River at HWY 95 Crossing near Parma, ID | C70: 13212900 | D70: 8.77 | E70: 918 | F70: 0.28 | H70: =H69 -> 839.38 | I70: =I69 -> 1515.069868 | J70: 103.53 | K70: =E70-(E61+SUM(E62:E69)) -> -4.6 | L70: =(D69-D70)*Unmeasured_Gains_Losses!$B$16 -> -0.8211901306 | M70: =M69+L70 -> 918 | N70: 0.25 | O70: 0.25 | Q70: =((Q69*M69)+(L70*Q69))/M70 -> 0.3091667008 | R70: 1530.83584 | S70: =F70*M70*$T$2 -> 1386.417211 | T70: =S70-(S61+(SUM(S62:S69))) -> -83.52807708 | U70: =(D69-D70)*Unmeasured_Gains_Losses!$C$16 -> -14.91139838 | V70: =(T70/K70)*$T$3 -> 3.366521739 | W70: =((W69*M69)+(U70*$T$3))/M70 -> 0.28 | X70: 1386.417211
A71: D | B71: Hass Canal | D71: 8.05 | E71: 0 | G71: 0.28 | H71: =H70+E71 -> 839.38 | I71: =I70+(G71*E71*$T$2) -> 1515.069868 | L71: =(D70-D71)*Unmeasured_Gains_Losses!$B$17 -> 0.8692152918 | M71: =M70+E71+L71 -> 918.8692153 | N71: 0.25 | O71: 0.25 | Q71: =((Q70*M70)+(E71*Q70)+(L71*N71))/M71 -> 0.3091107314 | R71: 1532.007929 | S71: =(G71*E71*$T$2) -> 0 | U71: =(D70-D71)*Unmeasured_Gains_Losses!$C$17 -> 8.532808023 | W71: =((W70*M70)+(E71*G71)+(U71*$T$3))/M71 -> 0.2814567814 | X71: 1394.950019
A72: D | B72: Parma Canal | D72: 7.47 | E72: 0 | G72: 0.28 | H72: =H71+E72 -> 839.38 | I72: =I71+(G72*E72*$T$2) -> 1515.069868 | L72: =(D71-D72)*Unmeasured_Gains_Losses!$B$17 -> 0.7002012072 | M72: 919.5694165 | N72: 0.25 | O72: 0.25 | Q72: =((Q71*M71)+(E72*Q71)+(L72*N72))/M72 -> 0.3090657219 | R72: 1532.952112 | S72: =(G72*E72*$T$2) -> 0 | U72: =(D71-D72)*Unmeasured_Gains_Losses!$C$17 -> 6.873650907 | W72: =((W71*M71)+(E72*G72)+(U72*$T$3))/M72 -> 0.2826282969 | X72: 1401.82367
A73: D | B73: Island Highline Canal | D73: 6.33 | E73: 0 | G73: 0.28 | H73: =H72+E73 -> 839.38 | I73: =I72+(G73*E73*$T$2) -> 1515.069868 | L73: =(D72-D73)*Unmeasured_Gains_Losses!$B$17 -> 1.376257545 | M73: 920.945674 | N73: 0.25 | O73: 0.25 | Q73: =((Q72*M72)+(E73*Q72)+(L73*N73))/M73 -> 0.3089774543 | R73: =Q73*M73*$T$2 -> 1534.807919 | S73: =(G73*E73*$T$2) -> 0 | U73: =(D72-D73)*Unmeasured_Gains_Losses!$C$17 -> 13.51027937 | W73: =((W72*M72)+(E73*G73)+(U73*$T$3))/M73 -> 0.284925739 | X73: =W73*M73*$T$2 -> 1415.333949
A74: D | B74: Crawforth Pumps | D74: 4.32 | E74: 0 | G74: 0.29 | H74: =H73+E74 -> 839.38 | I74: =I73+(G74*E74*$T$2) -> 1515.069868 | L74: =(D73-D74)*Unmeasured_Gains_Losses!$B$17 -> 2.426559356 | M74: 923.3722334 | N74: 0.25 | O74: 0.25 | Q74: =((Q73*M73)+(E74*Q73)+(L74*N74))/M74 -> 0.3088224655 | R74: 1538.080001 | S74: =(G74*E74*$T$2) -> 0 | U74: =(D73-D74)*Unmeasured_Gains_Losses!$C$17 -> 23.82075573 | W74: =((W73*M73)+(E74*G74)+(U74*$T$3))/M74 -> 0.2889598096 | X74: 1439.154705
A75: D | B75: McConnel Island Canal | D75: 3.91 | E75: 0 | G75: 0.29 | H75: =H74+E75 -> 839.38 | I75: =I74+(G75*E75*$T$2) -> 1515.069868 | L75: =(D74-D75)*Unmeasured_Gains_Losses!$B$17 -> 0.4949698189 | M75: 923.8672032 | N75: 0.25 | O75: 0.25 | Q75: =((Q74*M74)+(E75*Q74)+(L75*N75))/M75 -> 0.3087909509 | R75: 1538.747441 | S75: =(G75*E75*$T$2) -> 0 | U75: =(D74-D75)*Unmeasured_Gains_Losses!$C$17 -> 4.858960124 | W75: =((W74*M74)+(E75*G75)+(U75*$T$3))/M75 -> 0.2897800776 | X75: 1444.013665
A76: M | B76: Boise River near Parma, ID | C76: 13213000 | D76: 3.8 | E76: 924 | F76: 0.29 | H76: =H75 -> 839.38 | I76: =I75 -> 1515.069868 | J76: 106.06 | K76: =E76-(E70+(SUM(E71:E75))) -> 6 | L76: =(D75-D76)*Unmeasured_Gains_Losses!$B$17 -> 0.1327967807 | M76: =M75+L76 -> 924 | N76: 0.25 | O76: 0.25 | Q76: =((Q75*M75)+(L76*N76))/M76 -> 0.3087825015 | R76: 1538.92651 | S76: =F76*M76*$T$2 -> 1445.317289 | T76: =S76-(S70+(SUM(S71:S75))) -> 58.9000776 | U76: =(D75-D76)*Unmeasured_Gains_Losses!$C$17 -> 1.303623448 | V76: =(T76/K76)*$T$3 -> 1.82 | W76: =((W75*M75)+(U76*$T$3))/M76 -> 0.29 | X76: 1445.317289 | Y76: mean daily Q
A79: Sites Outside Modeling Reach
A80: R | B80: Sand Hollow Creek at Mouth near Parma, ID | C80: 13213080 | D80: NA | E80: 62 | F80: 0.2 | P80: Boise River near Parma + Sand Hollow Creek at Mouth | Q80: =((Q76*$E$76)+($E$80*$F$80))/($E$76+$E$80) -> 0.3019422225 | R80: =Q80*(E80+M76)*$T$2 -> 1605.809382 | W80: =((W76*$E$76)+($E$80*$F$80))/($E$76+$E$80) -> 0.2843407708 | X80: =W80*(E80+E76)*$T$2 -> 1512.200161
A81: SR | B81: Snake River near Adrian, OR | C81: 13173600 | D81: NA | E81: 7680 | F81: 0.03 | P81: Snake River NR Adrian | Q81: =F81 -> 0.03 | R81: =Q81*E81*$T$2 -> 1242.726912 | W81: 0.03 | X81: =W81*E81*$T$2 -> 1242.726912
K82: =E83-E81-E80-E76 -> 174 | P82: Other Sources | Q82: =$F$83-Q83 -> -0.0009410375466 | R82: =R83-R81-R80 -> 57.19424361 | W82: =$F$83-W83 -> 0.001061620125 | X82: =X83-X81-X80 -> 55.3147139
A83: SR | B83: Snake River at Nyssa, OR | C83: 13213100 | D83: NA | E83: 8840 | F83: 0.06 | P83: Snake River at Nyssa | Q83: =(($E$81*$F$81)+(Q80*($E$80+$E$76)))/($E$81+$E$80+$E$76) -> 0.06094103755 | R83: =Q83*E83*$T$2 -> 2905.730538 | W83: =(($E$81*$F$81)+(W80*($E$80+$E$76)))/($E$81+$E$80+$E$76) -> 0.05893837988 | X83: =W83*E83*$T$2 -> 2810.241787

Sheet North_Channel
D1: Equation No. In Report | J1: 1 | K1: 3 | L1: 4 | M1: 18 | N1: 5 | O1: 7 | P1: 14 | Q1: 9 | R1: 5
D2: Variable in Report | J2: Qgw | K2: Qgwi…n | L2: Qmi…n | M2: Cgw i…n | N2: ∆M | O2: ∆Mi…n | P2: Cp | Q2: Cm | R2: MUS, -MD, +MR
A3: Diversion, Return, or Main-stem | E3: Measured Discharge | F3: MeasuredTP | G3: Estimated Diversion TP | H3: Net SW Discharge | I3: Discharge Uncertainty Propogation of Errror | J3: Discharge Gain/Loss per Subreach | K3: GW Gain/Loss per RM | L3: Modeled Discharge with GW | M3: Estimated GW TP Dial | N3: Load Gain/Loss per Subreach | O3: Load In/Out per RM | P3: TP | Q3: TP | R3: SW Load in/out
B4: Name | C4: Site ID | D4: RM | E4: ft3/s | F4: mg/L | G4: mg/L | H4: ft3/s | I4: ft3/s | J4: ft3/s | K4: ft3/s/mi | L4: ft3/s | M4: mg/L | N4: lbs/d | O4: lbs/d/mi | P4: mg/L | Q4: mg/L | R4: lbs/d | S4: Note
A5: D | B5: Loss to North Channel (Boise River North Channel near Eagle, ID) | C5: Computed | D5: 45.5 | E5: 59.9 | F5: 0.06 | H5: =E5 -> 59.9 | L5: =H5 -> 59.9 | M5: =Oct.29.2012_Model!N14 -> 0.02890295359 | P5: =Oct.29.2012_Model!P15 -> 0.07388269318 | Q5: =Oct.29.2012_Model!W14 -> 0.01457907634 | R5: =E5*F5*Oct.29.2012_Model!$T$2 -> 19.38524532 | S5: Computed from measured Q at RM 45.5 = 59.9 + Ballentyne + Mace Mace
A6: D | B6: Ballentyne Canal | D6: 44 | E6: 0 | G6: 0.06 | H6: =E6+E5 -> 59.9 | L6: =H6 -> 59.9 | M6: =Oct.29.2012_Model!N15 -> 0.03452883263 | P6: =((P5*L5)+(E6*P5))/L6 -> 0.07388269318 | Q6: =((G6*E6)+(Q5*L5)+(O6*Oct.29.2012_Model!$T$3))/L6 -> 0.01457907634 | R6: =E6*F6*Oct.29.2012_Model!$T$2 -> 0
A7: D | B7: Mace-Mace Canal | D7: 42.8 | E7: 0 | G7: 0.06 | H7: =H6+E7 -> 59.9 | L7: 59.9 | M7: =Oct.29.2012_Model!N16 -> 0.04240506329 | P7: =((P6*L6)+(E7*P6))/L7 -> 0.07388269318 | Q7: =((G7*E7)+(Q6*L6)+(O7*Oct.29.2012_Model!$T$3))/L7 -> 0.01457907634 | R7: =E7*F7*Oct.29.2012_Model!$T$2 -> 0
A8: M | B8: Boise River North Channel near Eagle, ID | C8: 13206300 | D8: 42.8 | E8: 59.9 | F8: 0.06 | H8: =H7 -> 59.9 | I8: 7.55 | J8: 0 | K8: 0 | L8: =L7+K8 -> 59.9 | M8: =Oct.29.2012_Model!N17 -> 0.0458931083 | N8: 0 | O8: 0 | P8: =((P7*L7)+(K8*M8))/L8 -> 0.07388269318 | Q8: =((Q7*L7)+(O8*Oct.29.2012_Model!$T$3))/L8 -> 0.01457907634 | R8: =E8*F8*Oct.29.2012_Model!$T$2 -> 19.38524532 | S8: Instantaneous Q
A9: R | B9: Eagle Drain at Eagle, ID | C9: 13206400 | D9: 42.7 | E9: 14.5 | F9: 0.16 | H9: =H8+E9 -> 74.4 | K9: =(D8-D9)*Unmeasured_Gains_Losses!$B$19 -> 0.68 | L9: =L8+K9+E9 -> 75.08 | M9: =Oct.29.2012_Model!N18 -> 0.04971870605 | O9: =(D8-D9)*Unmeasured_Gains_Losses!$C$19 -> 0.309602972 | P9: =((P8*L8)+(E9*F9)+(K9*M9))/L9 -> 0.09029544542 | Q9: =((E9*F9)+(Q8*L8)+(O9*Oct.29.2012_Model!$T$3))/L9 -> 0.04329630624 | R9: =E9*F9*Oct.29.2012_Model!$T$2 -> 12.5135696 | S9: Mean daily Q
A10: R | B10: Dry Creek at Eagle, ID | C10: 13208000 | D10: 42.5 | E10: 0.2 | F10: 0.12 | H10: =H9+E10 -> 74.6 | K10: =(D9-D10)*Unmeasured_Gains_Losses!$B$19 -> 1.36 | L10: =L9+K10+E10 -> 76.64 | M10: =Oct.29.2012_Model!N19 -> 0.05714486639 | O10: =(D9-D10)*Unmeasured_Gains_Losses!$C$19 -> 0.619205944 | P10: =((P9*L9)+(E10*F10)+(K10*M10))/L10 -> 0.08978469546 | Q10: =((E10*F10)+(Q9*L9)+(O10*Oct.29.2012_Model!$T$3))/L10 -> 0.04422607871 | R10: =E10*F10*Oct.29.2012_Model!$T$2 -> 0.12945072 | S10: Instantaneous Q
A11: D | B11: Hart-Davis Canal | D11: 42.1 | E11: 0 | G11: 0.08 | H11: =H10+E11 -> 74.6 | K11: =(D10-D11)*Unmeasured_Gains_Losses!$B$19 -> 2.72 | L11: 79.36 | M11: =Oct.29.2012_Model!N20 -> 0.06198312236 | O11: =(D10-D11)*Unmeasured_Gains_Losses!$C$19 -> 1.238411888 | P11: =((P10*L10)+(E11*F11)+(K11*M11))/L11 -> 0.08883181896 | Q11: =((G11*E11)+(Q10*L10)+(O11*Oct.29.2012_Model!$T$3))/L11 -> 0.04560341069 | R11: =F11*E11 -> 0
A12: M | B12: Boise River (North Channel) above Middleton Canal, ID | C12: 13208600 | D12: 41.8 | E12: 81.4 | F12: 0.08 | H12: =H11 -> 74.6 | I12: 8.03 | J12: =E12-(SUM(E8:E11)) -> 6.8 | K12: =(D11-D12)*Unmeasured_Gains_Losses!$B$19 -> 2.04 | L12: =L11+K12 -> 81.4 | M12: =Oct.29.2012_Model!N21 -> 0.06198312236 | N12: =R12-(SUM(R8:R11)) -> 3.09602972 | O12: =(D11-D12)*Unmeasured_Gains_Losses!$C$19 -> 0.928808916 | P12: =((P11*L11)+(K12*M12))/L12 -> 0.08815895237 | Q12: =((Q11*L11)+(O12*Oct.29.2012_Model!$T$3))/L12 -> 0.04657600335 | R12: =E12*F12*Oct.29.2012_Model!$T$2 -> 35.12429536 | S12: Instantaneous Q
A13: D | B13: Middleton Canal | D13: 41.5 | E13: 0 | G13: 0.08 | H13: =H12+E13 -> 74.6 | L13: =K13+L12+E13 -> 81.4 | M13: =Oct.29.2012_Model!N22 -> 0.06445850914 | P13: =((P12*L12)+(E13*P12)+(K13*M13))/L13 -> 0.08815895237 | Q13: =((G13*E13)+(Q12*L12)+(O13*Oct.29.2012_Model!$T$3))/L13 -> 0.04657600335 | R13: =E13*G13*Oct.29.2012_Model!$T$2 -> 0
A14: D | B14: Eagle Island Park | D14: 41.4 | E14: 0 | G14: 0.08 | H14: =H13+E14 -> 74.6 | L14: =K14+L13+E14 -> 81.4 | M14: =Oct.29.2012_Model!N23 -> 0.06502109705 | P14: =((P13*L13)+(E14*P13)+(K14*M14))/L14 -> 0.08815895237 | Q14: =((G14*E14)+(Q13*L13)+(O14*Oct.29.2012_Model!$T$3))/L14 -> 0.04657600335 | R14: =E14*G14*Oct.29.2012_Model!$T$2 -> 0
A15: D | B15: Little Pioneer Canal | D15: 41.2 | E15: 0 | G15: 0.08 | H15: =H14+E15 -> 74.6 | L15: =K15+L14+E15 -> 81.4 | M15: =Oct.29.2012_Model!N24 -> 0.06614627286 | P15: =((P14*L14)+(E15*P14)+(K15*M15))/L15 -> 0.08815895237 | Q15: =((G15*E15)+(Q14*L14)+(O15*Oct.29.2012_Model!$T$3))/L15 -> 0.04657600335 | R15: =E15*G15*Oct.29.2012_Model!$T$2 -> 0
A16: R | B16: GAIN FROM North Channel | C16: Computed | D16: 40.2 | E16: =L16 -> 81.4 | G16: 0.08 | L16: =L15+K16 -> 81.4 | M16: =Oct.29.2012_Model!N25 -> 0.06952180028 | N16: =R16-(SUM(R12:R15)) -> 0 | O16: 0 | P16: =((P15*L15)+(K16*M16))/L16 -> 0.08815895237 | Q16: =((Q15*L15)+(E15*G15)+(O16*Oct.29.2012_Model!$T$3))/L16 -> 0.04657600335 | R16: =G16*E16*Oct.29.2012_Model!T2 -> 35.12429536 | S16: Computed Q

Sheet Unmeasured_Gains_Losses
B1: Unaccounted-for Gains and Losses in Discharge and Mass
A2: Equation No. In Report | B2: 2 | C2: 6 | F2: 1 | G2: 5
A3: Variable in Report | B3: QgwRM | C3: ∆MRM | F3: Qgw | G3: ∆M
B4: Discharge Gain/Loss Per River Mile | C4: Load Gain/Loss Per River Mile | D4: Beginning Reach (RM) | E4: End Reach (RM) | F4: Discharge Gain / Loss over Reach | G4: Load Gain/Loss over Reach
B5: ft3/s | C5: lbs/d | D5: mi | E5: mi | F5: ft3/s | G5: lbs/d
B6: =F6/(D6-E6) -> 0.5842696629 | C6: =G6/(D6-E6) -> -7.348146488 | D6: 50.17 | E6: 47.5 | F6: =Oct.29.2012_Model!K13 -> 1.56 | G6: =Oct.29.2012_Model!T13 -> -19.61955112
B7: 1.221276596 | C7: -41.83186245 | D7: 47.5 | E7: 42.8 | F7: =Oct.29.2012_Model!K23 -> 5.74 | G7: =Oct.29.2012_Model!T23 -> -196.6097535
B8: 20.40196078 | C8: -15.7503664 | D8: 42.8 | E8: 41.78 | F8: =Oct.29.2012_Model!K28 -> 20.81 | G8: =Oct.29.2012_Model!T28 -> -16.06537373
B9: 2.159624413 | C9: -2.410741108 | D9: 41.78 | E9: 39.65 | F9: =Oct.29.2012_Model!K31 -> 4.6 | G9: =Oct.29.2012_Model!T31 -> -5.13487856
B10: 6.510769231 | C10: =G10/(D10-E10) -> 19.34126527 | D10: 39.65 | E10: 36.4 | F10: =Oct.29.2012_Model!K33 -> 21.16 | G10: =Oct.29.2012_Model!T33 -> 62.85911212
B11: 11.46881288 | C11: 41.25102169 | D11: 36.4 | E11: 31.43 | F11: =Oct.29.2012_Model!K37 -> 57 | G11: =Oct.29.2012_Model!T37 -> 205.0175778
B12: -3.05019305 | C12: -15.59822865 | D12: 31.43 | E12: 28.84 | F12: =Oct.29.2012_Model!K39 -> -7.9 | G12: =Oct.29.2012_Model!T39 -> -40.3994122
B13: 9.989711934 | C13: 15.69112753 | D13: 28.84 | E13: 23.98 | F13: =Oct.29.2012_Model!K49 -> 48.55 | G13: =Oct.29.2012_Model!T49 -> 76.25887977
B14: -10.31372549 | C14: -71.53463709 | D14: 23.98 | E14: 21.43 | F14: =Oct.29.2012_Model!K54 -> -26.3 | G14: =Oct.29.2012_Model!T54 -> -182.4133246
B15: -7.279029463 | C15: 12.30193151 | D15: 21.43 | E15: 15.66 | F15: =Oct.29.2012_Model!K61 -> -42 | G15: =Oct.29.2012_Model!T61 -> 70.9821448
B16: -0.6676342525 | C16: -12.12308811 | D16: 15.66 | E16: 8.77 | F16: =Oct.29.2012_Model!K70 -> -4.6 | G16: =Oct.29.2012_Model!T70 -> -83.52807708
B17: 1.207243461 | C17: 11.85112225 | D17: 8.77 | E17: 3.8 | F17: =Oct.29.2012_Model!K76 -> 6 | G17: =Oct.29.2012_Model!T76 -> 58.9000776
A18: Begin North Channel | B18: 0 | C18: 0 | D18: 45.5 | E18: 42.8 | F18: =North_Channel!J8 -> 0 | G18: =North_Channel!N8 -> 0
B19: =F19/(D19-E19) -> 6.8 | C19: =G19/(D19-E19) -> 3.09602972 | D19: 42.8 | E19: 41.8 | F19: =North_Channel!J12 -> 6.8 | G19: =North_Channel!N12 -> 3.09602972

Sheet Measured_Main_Stem_Data
A1: RM | B1: Discharge | C1: Measured TP | D1: Measured Load | E1: Mm TP | F1: 1:1 Line | G1: Cp TP | H1: Cm TP
A2: mile | B2: cfs | C2: mg/L | D2: lbs/d | E2: lbs/d | F2: mg/L | G2: mg/L | H2: mg/L
A3: 61.1 | B3: 232 | C3: 0.02 | D3: =C3*B3*Oct.29.2012_Model!$T$2 -> 25.0271392 | F3: =C3 -> 0.02
A4: 50.17 | B4: 234 | C4: 0.004 | D4: =C4*B4*Oct.29.2012_Model!$T$2 -> 5.04857808 | E4: =Oct.29.2012_Model!X10 -> 5.04857808 | F4: 0.004 | G4: =Oct.29.2012_Model!Q10 -> 0.004 | H4: =Oct.29.2012_Model!W10 -> 0.004
A5: 47.5 | B5: 255 | C5: 0.06 | D5: =C5*B5*Oct.29.2012_Model!$T$2 -> 82.524834 | E5: =Oct.29.2012_Model!X13 -> 82.524834 | F5: 0.06 | G5: =Oct.29.2012_Model!Q13 -> 0.07432657774 | H5: =Oct.29.2012_Model!W13 -> 0.06
A6: 42.8 | B6: 224 | C6: 0.3 | D6: =C6*B6*Oct.29.2012_Model!$T$2 -> 362.462016 | E6: =Oct.29.2012_Model!X23 -> 362.462016 | F6: 0.3 | G6: =Oct.29.2012_Model!Q23 -> 0.4763993123 | H6: =Oct.29.2012_Model!W23 -> 0.3
A7: 41.78 | B7: 250 | C7: 0.26 | D7: =C7*B7*Oct.29.2012_Model!$T$2 -> 350.5957 | E7: =Oct.29.2012_Model!X28 -> 350.5957 | F7: 0.26 | G7: =Oct.29.2012_Model!Q28 -> 0.4359833264 | H7: =Oct.29.2012_Model!W28 -> 0.26
A8: 39.65 | B8: 336 | C8: 0.21 | D8: =C8*B8*Oct.29.2012_Model!$T$2 -> 380.5851168 | E8: =Oct.29.2012_Model!X31 -> 380.5851168 | F8: 0.21 | G8: =Oct.29.2012_Model!Q31 -> 0.3470300895 | H8: =Oct.29.2012_Model!W31 -> 0.21
A9: 36.4 | B9: 358 | C9: 0.23 | D9: =C9*B9*Oct.29.2012_Model!$T$2 -> 444.1238452 | E9: =Oct.29.2012_Model!X33 -> 444.1238452 | F9: 0.23 | G9: =Oct.29.2012_Model!Q33 -> 0.3340134912 | H9: =Oct.29.2012_Model!W33 -> 0.23
A10: 31.43 | B10: 415 | C10: 0.29 | D10: =C10*B10*Oct.29.2012_Model!$T$2 -> 649.141423 | E10: =Oct.29.2012_Model!X37 -> 649.141423 | F10: 0.29 | G10: =Oct.29.2012_Model!Q37 -> 0.3137318013 | H10: =Oct.29.2012_Model!W37 -> 0.29
A11: 28.84 | B11: 438 | C11: 0.3 | D11: =C11*B11*Oct.29.2012_Model!$T$2 -> 708.742692 | E11: =Oct.29.2012_Model!X39 -> 708.742692 | F11: 0.3 | G11: =Oct.29.2012_Model!Q39 -> 0.3337227877 | H11: =Oct.29.2012_Model!W39 -> 0.3
A12: 23.98 | B12: 638 | C12: 0.28 | D12: =C12*B12*Oct.29.2012_Model!$T$2 -> 963.5448592 | E12: =Oct.29.2012_Model!X49 -> 963.5448592 | F12: 0.28 | G12: =Oct.29.2012_Model!Q49 -> 0.2997484066 | H12: =Oct.29.2012_Model!W49 -> 0.28
A13: 21.43 | B13: 623 | C13: 0.24 | D13: =C13*B13*Oct.29.2012_Model!$T$2 -> 806.4779856 | E13: =Oct.29.2012_Model!X54 -> 806.4779856 | F13: 0.24 | G13: =Oct.29.2012_Model!Q54 -> 0.3018180694 | H13: =Oct.29.2012_Model!W54 -> 0.24
A14: 15.66 | B14: 581 | C14: 0.28 | D14: =C14*B14*Oct.29.2012_Model!$T$2 -> 877.4601304 | E14: =Oct.29.2012_Model!X61 -> 877.4601304 | F14: 0.28 | G14: =Oct.29.2012_Model!Q61 -> 0.3018180694 | H14: =Oct.29.2012_Model!W61 -> 0.28
A15: 8.77 | B15: 918 | C15: 0.28 | D15: =C15*B15*Oct.29.2012_Model!$T$2 -> 1386.417211 | E15: =Oct.29.2012_Model!X70 -> 1386.417211 | F15: 0.28 | G15: =Oct.29.2012_Model!Q70 -> 0.3091667008 | H15: =Oct.29.2012_Model!W70 -> 0.28
A16: 3.8 | B16: 924 | C16: 0.29 | D16: =C16*B16*Oct.29.2012_Model!$T$2 -> 1445.317289 | E16: =Oct.29.2012_Model!X76 -> 1445.317289 | F16: =C16 -> 0.29 | G16: =Oct.29.2012_Model!Q76 -> 0.3087825015 | H16: =Oct.29.2012_Model!W76 -> 0.29
C17: 0.6 | F17: =C17 -> 0.6
C18: 0 | F18: =C18 -> 0

Sheet Major_inflows
B1: x | C1: y | D1: y2 | E1: y3
B2: RM | C2: TP range | D2: TP load Range | E2: Q range
A3: Inflow | B3: mile | C3: mg/L | D3: lbs/d | E3: ft3/s
A4: Lander WWTP | B4: 50.01 | C4: 0 | D4: 0 | E4: 0
B5: 50.01 | C5: 0.6 | D5: 1600 | E5: 4000
A6: West Boise WWTP | B6: 44.16 | C6: 0 | D6: 0 | E6: 0
A7: West Boise WWTP | B7: 44.16 | C7: 0.6 | D7: 1600 | E7: 4000
A8: 15mile | B8: 30.31 | C8: 0 | D8: 0 | E8: 0
B9: 30.31 | C9: 0.6 | D9: 1600 | E9: 4000
A10: Mason | B10: 24.95 | C10: 0 | D10: 0 | E10: 0
B11: 24.95 | C11: 0.6 | D11: 1600 | E11: 4000
A12: Caldwell WWTP | B12: 22.55 | C12: 0 | D12: 0 | E12: 0
B13: 22.55 | C13: 0.6 | D13: 1600 | E13: 4000
A14: Indian | B14: 22.44 | C14: 0 | D14: 0 | E14: 0
B15: 22.44 | C15: 0.6 | D15: 1600 | E15: 4000
A16: Dixie | B16: 10.53 | C16: 0 | D16: 0 | E16: 0
B17: 10.53 | C17: 0.6 | D17: 1600 | E17: 4000
A18: North and South Channel Start | B18: 45.51 | C18: 0 | D18: 0 | E18: 0
B19: 45.51 | C19: 0.6 | D19: 1600 | E19: 4000
A20: North and South Channel Start | B20: 40.2 | C20: 0 | D20: 0 | E20: 0
B21: 40.2 | C21: 0.6 | D21: 1600 | E21: 4000
A22: TP target | B22: 70 | C22: 0.07
B23: 0 | C23: 0.07
